bitfinex/quotes_BTCUSD_20250619
["timestamp","ask_amount","ask_price","bid_price","bid_amount"]
[1750299844002,1.16516542,104770.0,104760.0,0.0663]
[1750299844227,1.18809618,104770.0,104760.0,0.0663]
[1750299845096,1.15939818,104770.0,104760.0,0.0663]
[1750299845764,1.15939758,104770.0,104760.0,0.0663]
[1750299846755,1.15939654,104770.0,104760.0,0.0663]
[1750299848704,0.79941937,104770.0,104760.0,0.0663]
[1750299848919,0.80896363,104770.0,104760.0,0.0663]
[1750299849339,0.38044921,104770.0,104760.0,0.0663]
[1750299849542,0.43011383,104770.0,104760.0,0.07584562]
[1750299849749,0.43011383,104770.0,104760.0,0.0663]
[1750299850037,0.01908824,104770.0,104760.0,0.27630344]
[1750299850240,0.52376422,104780.0,104770.0,0.27368348]
[1750299850448,0.00954307,104780.0,104770.0,0.20998348]
[1750299850618,0.38999008,104780.0,104770.0,0.26413904]
[1750299850882,0.39953361,104780.0,104770.0,0.26413904]
[1750299851084,0.40907732,104780.0,104770.0,0.07324471]
[1750299851284,0.58086721,104780.0,104770.0,0.0637]
[1750299852228,0.38999109,104780.0,104770.0,0.07324471]
[1750299852437,0.39953489,104780.0,104770.0,0.0637]
[1750299852863,0.35929396,104780.0,104770.0,0.07324471]
[1750299853066,0.34975016,104780.0,104770.0,0.08278933]
[1750299853483,0.33772645,104780.0,104770.0,0.09233386]
[1750299853919,0.2074829,104780.0,104770.0,0.0637]
[1750299854116,0.60734391,104780.0,104770.0,0.0637]
[1750299854341,0.53108294,104780.0,104770.0,0.0637]
[1750299858435,0.55977894,104780.0,104770.0,0.0637]
[1750299859791,0.55977894,104780.0,104770.0,0.0647]
[1750299860217,0.53108294,104780.0,104770.0,0.0647]
[1750299864290,0.59063843,104780.0,104770.0,0.0647]
[1750299867912,0.08818599,104780.0,104770.0,0.0647]
[1750299868130,0.33066274,104780.0,104770.0,0.26513904]
[1750299868352,0.34974953,104780.0,104770.0,0.27468366]
[1750299868576,0.35929315,104780.0,104770.0,0.27468366]
[1750299868998,0.35929315,104780.0,104770.0,0.26513904]
[1750299869221,0.36883686,104780.0,104770.0,0.26513904]
[1750299869434,0.35929379,104780.0,104770.0,0.0647]
[1750299870065,0.35929379,104780.0,104770.0,0.07424471]
[1750299870272,0.34975008,104780.0,104770.0,0.08378933]
[1750299870495,0.54975008,104780.0,104770.0,0.08378933]
[1750299870760,0.34975008,104780.0,104770.0,0.07424471]
[1750299870966,0.35929379,104780.0,104770.0,0.07424471]
[1750299871389,0.34975008,104780.0,104770.0,0.08378933]
[1750299871819,0.35929379,104780.0,104770.0,0.07424471]
[1750299872892,0.39942286,104780.0,104770.0,0.07424471]
[1750299874386,0.39942286,104780.0,104770.0,0.0647]
[1750299876106,0.39942286,104780.0,104770.0,0.07424471]
[1750299876524,0.39942286,104780.0,104770.0,0.0647]
[1750299880669,0.58075563,104780.0,104770.0,0.0647]
[1750299883012,0.19087612,104780.0,104770.0,0.0647]
[1750299883224,0.5616683,104780.0,104770.0,0.0647]
[1750299886914,0.57121201,104780.0,104770.0,0.0647]
[1750299887561,0.38987951,104780.0,104770.0,0.0647]
[1750299887783,0.38987896,104780.0,104770.0,0.27468366]
[1750299888000,0.38987887,104780.0,104770.0,0.28422819]
[1750299888427,0.00954316,104780.0,104770.0,0.29377263]
[1750299888646,0.38033525,104780.0,104770.0,0.29377263]
[1750299888859,0.38987887,104780.0,104770.0,0.27468366]
[1750299889289,0.38987887,104780.0,104770.0,0.26513904]
[1750299889912,0.39942267,104780.0,104770.0,0.0647]
[1750299890575,0.39942258,104780.0,104770.0,0.07424471]
[1750299890985,0.39942258,104780.0,104770.0,0.0647]
[1750299892091,0.59029934,104780.0,104770.0,0.0647]
[1750299892299,0.58075599,104780.0,104770.0,0.0647]
[1750299894747,0.38033607,104780.0,104770.0,0.0647]
[1750299894965,0.00954335,104780.0,104770.0,0.25559433]
[1750299895179,0.38987869,104780.0,104770.0,0.26513895]
[1750299895830,0.38033516,104780.0,104770.0,0.27468348]
[1750299896058,0.3898786,104780.0,104770.0,0.26513895]
[1750299896914,0.38033516,104780.0,104770.0,0.27468348]
[1750299897133,0.38033516,104780.0,104770.0,0.28422792]
[1750299897343,0.38033516,104780.0,104770.0,0.27468348]
[1750299897828,0.00954298,104780.0,104770.0,0.28422783]
[1750299898085,0.45097662,104790.0,104780.0,0.0629]
[1750299898330,0.25754998,104790.0,104780.0,0.27286345]
[1750299898548,0.23846539,104790.0,104780.0,0.2824068]
[1750299898802,0.04800755,104790.0,104780.0,0.2824068]
[1750299899047,0.03846539,104790.0,104780.0,0.74944046]
[1750299899291,0.01908278,104800.0,104790.0,0.27044341]
[1750299899533,5.113456,104800.0,104790.0,0.2895281]
[1750299899775,0.03370463,104800.0,104790.0,0.2895281]
[1750299900014,0.028694,104810.0,104790.0,0.73747516]
[1750299900243,0.028694,104810.0,104800.0,0.28950606]
[1750299900460,0.028694,104810.0,104800.0,0.38574791]
[1750299900936,0.03823443,104810.0,104800.0,0.37620648]
[1750299901181,0.028694,104810.0,104800.0,0.37620648]
[1750299901476,0.00954034,104810.0,104800.0,0.37620648]
[1750299901696,0.00954034,104810.0,104800.0,0.38574791]
[1750299901930,0.00954034,104810.0,104800.0,0.37620648]
[1750299902816,0.00954034,104810.0,104800.0,0.38574791]
[1750299903032,0.00954025,104810.0,104800.0,0.38574791]
[1750299903466,0.01908059,104810.0,104800.0,0.37620648]
[1750299903678,0.01908059,104810.0,104800.0,0.38574791]
[1750299903909,0.43186564,104820.0,104800.0,0.32524736]
[1750299904097,0.38962952,104820.0,104810.0,0.26346237]
[1750299904380,0.38962952,104820.0,104810.0,0.28254378]
[1750299905307,0.39916922,104820.0,104810.0,0.29208449]
[1750299905533,0.38962952,104820.0,104810.0,0.29208449]
[1750299905759,5e-05,104820.0,104810.0,0.55318668]
[1750299905986,5e-05,104820.0,104810.0,0.87407119]
[1750299906657,5e-05,104820.0,104810.0,0.55318668]
[1750299908044,5e-05,104820.0,104810.0,0.87407119]
[1750299908292,5e-05,104820.0,104810.0,0.55318668]
[1750299910939,0.56123019,104840.0,104830.0,0.0332]
[1750299911129,0.57076835,104840.0,104830.0,0.0642]
[1750299911896,0.04004,104840.0,104830.0,0.26452424]
[1750299912123,0.34949571,104850.0,104830.0,0.25994044]
[1750299912343,0.05911386,104850.0,104840.0,0.0651]
[1750299912571,0.09282481,104850.0,104840.0,0.07463825]
[1750299912797,0.09282481,104850.0,104840.0,0.08417641]
[1750299913239,0.03371095,104850.0,104840.0,0.28448127]
[1750299913460,0.04324756,104850.0,104840.0,0.28448127]
[1750299913680,0.0190734,104850.0,104840.0,0.28448127]
[1750299913903,0.01907331,104850.0,104840.0,0.28448127]
[1750299914135,0.01907331,104850.0,104840.0,0.29401906]
[1750299914366,0.07120236,104850.0,104840.0,0.28448136]
[1750299914594,0.07120236,104850.0,104840.0,0.27494329]
[1750299914810,0.03814717,104850.0,104840.0,0.28448136]
[1750299915277,0.03814707,104850.0,104840.0,0.29401934]
[1750299915923,0.04768414,104850.0,104840.0,0.28448136]
[1750299916385,0.04768414,104850.0,104840.0,0.29401934]
[1750299916647,0.04768414,104850.0,104840.0,0.28448136]
[1750299916865,0.04768487,104850.0,104840.0,0.07463834]
[1750299917072,0.36856938,104850.0,104840.0,0.08417659]
[1750299917290,0.36856929,104850.0,104840.0,0.08417659]
[1750299917506,0.36856929,104850.0,104840.0,0.09371475]
[1750299917718,0.40147017,104850.0,104840.0,0.09371475]
[1750299917941,0.40147017,104850.0,104840.0,0.08417659]
[1750299918373,0.40147017,104850.0,104840.0,0.09371475]
[1750299918582,0.40147017,104850.0,104840.0,0.08417659]
[1750299919947,0.07104841,104850.0,104840.0,0.08417659]
[1750299920160,0.40147008,104850.0,104840.0,0.08417659]
[1750299920377,0.40147008,104850.0,104840.0,0.07463834]
[1750299920593,0.40147072,104850.0,104840.0,0.07463834]
[1750299921195,0.40147063,104850.0,104840.0,0.08417659]
[1750299921842,0.39193338,104850.0,104840.0,0.08417659]
[1750299922154,0.39193338,104850.0,104840.0,0.09371475]
[1750299923727,0.05197464,104850.0,104840.0,0.29401961]
[1750299923945,0.05197464,104850.0,104840.0,0.30355749]
[1750299924430,0.05197464,104850.0,104840.0,0.29401961]
[1750299925063,0.05197474,104850.0,104840.0,0.29401961]
[1750299925467,0.05197464,104850.0,104840.0,0.30355749]
[1750299925670,0.06087267,104850.0,104840.0,0.30355749]
[1750299925873,0.06087267,104850.0,104840.0,0.2940197]
[1750299925874,0.05197464,104850.0,104840.0,0.2940197]
[1750299926077,0.05197464,104850.0,104840.0,0.30355768]
[1750299926439,0.05197464,104850.0,104840.0,0.29401934]
[1750299926644,0.05197464,104850.0,104840.0,0.28448136]
[1750299926875,0.05197464,104850.0,104840.0,0.29401934]
[1750299927304,0.04243767,104850.0,104840.0,0.30355676]
[1750299927504,0.0786933,104850.0,104840.0,0.30355676]
[1750299927673,0.0786933,104850.0,104840.0,0.29401897]
[1750299927874,0.0786933,104850.0,104840.0,0.30355676]
[1750299928276,0.0786933,104850.0,104840.0,0.29401897]
[1750299928500,0.07869321,104850.0,104840.0,0.30355676]
[1750299928719,0.07869321,104850.0,104840.0,0.29401897]
[1750299929035,0.07869321,104850.0,104840.0,0.30355676]
[1750299929174,0.07870473,104850.0,104840.0,0.30355676]
[1750299929415,0.0882417,104850.0,104840.0,0.28448109]
[1750299929624,0.07870473,104850.0,104840.0,0.37118487]
[1750299929815,0.07870473,104850.0,104840.0,0.38072275]
[1750299930448,0.0882417,104850.0,104840.0,0.38072275]
[1750299930676,0.08825562,104850.0,104840.0,0.38072275]
[1750299930958,0.09779269,104850.0,104840.0,0.37118487]
[1750299931385,0.08825562,104850.0,104840.0,0.38072285]
[1750299931721,0.08825562,104850.0,104840.0,0.39026073]
[1750299931945,0.08826322,104850.0,104840.0,0.38072285]
[1750299932303,0.08826322,104850.0,104840.0,0.39026073]
[1750299932809,0.08826322,104850.0,104840.0,0.38072285]
[1750299932990,0.08826322,104850.0,104840.0,0.39026073]
[1750299933216,0.07872634,104850.0,104840.0,0.39979852]
[1750299934157,0.07872634,104850.0,104840.0,0.72068257]
[1750299934158,0.02675197,104850.0,104840.0,0.72068257]
[1750299934375,0.00891012,104850.0,104840.0,0.72068257]
[1750299934646,5e-05,104860.0,104850.0,0.28395988]
[1750299934863,0.00897566,104860.0,104850.0,0.53544164]
[1750299935078,0.00897566,104860.0,104850.0,0.56411699]
[1750299935317,5e-05,104860.0,104850.0,0.56411699]
[1750299935531,0.00897566,104860.0,104850.0,0.56411699]
[1750299936278,0.00897566,104860.0,104850.0,0.8850015]
[1750299936513,5e-05,104860.0,104850.0,0.8850015]
[1750299936733,5e-05,104860.0,104850.0,1.35436968]
[1750299936973,5e-05,104860.0,104850.0,1.37351689]
[1750299937402,5e-05,104870.0,104860.0,0.60332347]
[1750299937617,5e-05,104870.0,104860.0,0.77749999]
[1750299938041,5e-05,104870.0,104860.0,0.61181548]
[1750299938271,5e-05,104870.0,104860.0,0.53388072]
[1750299940443,5e-05,104870.0,104860.0,0.85476523]
[1750299943776,5e-05,104870.0,104860.0,0.53388072]
[1750299943981,5e-05,104870.0,104860.0,0.85476523]
[1750299945271,5e-05,104870.0,104860.0,0.53388072]
[1750299946302,5e-05,104870.0,104860.0,0.53384072]
[1750299947690,5e-05,104870.0,104860.0,0.53584072]
[1750299948825,5e-05,104870.0,104860.0,0.53684072]
[1750299950522,5e-05,104870.0,104860.0,0.85772523]
[1750299957830,5e-05,104870.0,104860.0,0.53684072]
[1750299958022,5e-05,104870.0,104860.0,0.85772523]
[1750299959583,5e-05,104870.0,104860.0,0.89664605]
[1750299961917,5e-05,104870.0,104860.0,0.85772523]
[1750299963346,5e-05,104870.0,104860.0,0.89564043]
[1750299963596,5e-05,104870.0,104860.0,0.57475592]
[1750299964029,5e-05,104870.0,104860.0,0.89564043]
[1750299965107,0.32093451,104870.0,104860.0,0.52726484]
[1750299965344,5e-05,104870.0,104860.0,0.53680072]
[1750299968598,5e-05,104870.0,104860.0,0.38168072]
[1750299968809,5e-05,104870.0,104860.0,0.53680072]
[1750299969640,0.32093451,104870.0,104860.0,0.16234176]
[1750299969882,0.40380528,104870.0,104860.0,0.25436176]
[1750299970137,0.68037127,104870.0,104860.0,0.003]
[1750299970399,0.59392151,104870.0,104860.0,0.003]
[1750299970818,0.5939217,104870.0,104860.0,0.003]
[1750299971923,0.58498234,104870.0,104860.0,0.003]
[1750299973246,0.58493234,104870.0,104860.0,0.003]
[1750299974177,5.79453756,104870.0,104860.0,0.001]
[1750299974822,5.9497501,104870.0,104860.0,0.001]
[1750299975269,5.69838834,104870.0,104860.0,0.001]
[1750299975487,0.78005234,104870.0,104860.0,0.001]
[1750299976989,5.9897501,104870.0,104860.0,0.001]
[1750299978275,0.78005234,104870.0,104860.0,0.001]
[1750299978490,0.78005234,104870.0,104860.0,0.007]
[1750299979997,0.56633669,104870.0,104860.0,0.007]
[1750299981567,0.56637669,104870.0,104860.0,0.007]
[1750299981999,0.56633669,104870.0,104860.0,0.007]
[1750299982666,6.16208345,104870.0,104860.0,0.007]
[1750299982928,6.20510919,104870.0,104860.0,0.007]
[1750299983142,6.14767432,104870.0,104860.0,0.007]
[1750299983592,6.3100493,104870.0,104860.0,0.007]
[1750299984019,5.97462394,104870.0,104860.0,0.007]
[1750299984242,6.10008845,104870.0,104860.0,0.007]
[1750299984469,6.29524845,104870.0,104860.0,0.007]
[1750299984681,6.29520845,104870.0,104860.0,0.007]
[1750299985335,6.30412324,104870.0,104860.0,0.007]
[1750299986008,6.30442324,104870.0,104860.0,0.007]
[1750299986674,6.30442324,104870.0,104860.0,0.001]
[1750299987312,0.3686112,104850.0,104840.0,0.07303834]
[1750299987743,0.3686112,104850.0,104840.0,0.08257659]
[1750299987928,0.3686112,104850.0,104840.0,0.0635]
[1750299988140,0.55935988,104850.0,104840.0,0.0635]
[1750299988405,0.3686112,104850.0,104840.0,0.07303834]
[1750299988618,0.35907386,104850.0,104840.0,0.0825765]
[1750299988835,0.36861102,104850.0,104840.0,0.07303834]
[1750299989045,0.37814827,104850.0,104840.0,0.08257659]
[1750299989265,0.36861102,104850.0,104840.0,0.28288163]
[1750299989736,0.35907386,104850.0,104840.0,0.28288163]
[1750299989964,0.36861102,104850.0,104840.0,0.28288163]
[1750299990656,0.36861102,104850.0,104840.0,0.0635]
[1750299990867,0.37814845,104850.0,104840.0,0.0635]
[1750299991282,0.36861102,104850.0,104840.0,0.07303825]
[1750299991694,0.56889713,104850.0,104840.0,0.0635]
[1750299993847,0.35907423,104850.0,104840.0,0.0635]
[1750299994461,0.36861148,104850.0,104840.0,0.07303825]
[1750299994669,0.37814882,104850.0,104840.0,0.07303834]
[1750299995297,0.37814882,104850.0,104840.0,0.0635]
[1750299995503,0.37814882,104850.0,104840.0,0.07303834]
[1750299996274,0.37814882,104850.0,104840.0,0.0635]
[1750299996526,0.69903333,104850.0,104840.0,0.0635]
[1750299997019,0.70857076,104850.0,104840.0,0.0635]
[1750299997459,0.69903333,104850.0,104840.0,0.07303834]
[1750299998083,0.69903333,104850.0,104840.0,0.0635]
[1750299998519,0.69903333,104850.0,104840.0,0.07303834]
[1750299998773,0.68949599,104850.0,104840.0,0.08257659]
[1750299999499,0.67995874,104850.0,104840.0,0.09211475]
[1750299999731,0.35907386,104850.0,104840.0,0.2924197]
[1750299999965,0.35907386,104850.0,104840.0,0.28288163]
[1750300000167,0.36861111,104850.0,104840.0,0.28288163]
[1750300000395,0.35907386,104850.0,104840.0,0.28288163]
[1750300000618,0.36861111,104850.0,104840.0,0.27934347]
[1750300000849,0.36861111,104850.0,104840.0,0.26980522]
[1750300001049,0.36861111,104850.0,104840.0,0.27934347]
[1750300001257,0.36861111,104850.0,104840.0,0.07903834]
[1750300001462,0.36861111,104850.0,104840.0,0.0695]
[1750300001905,0.37814854,104850.0,104840.0,0.0695]
[1750300002091,0.36861111,104850.0,104840.0,0.07903825]
[1750300002295,0.35907386,104850.0,104840.0,0.27934329]
[1750300002507,0.36861111,104850.0,104840.0,0.27934329]
[1750300003131,0.36861102,104850.0,104840.0,0.27934329]
[1750300003768,0.37814836,104850.0,104840.0,0.26980513]
[1750300004149,0.36861102,104850.0,104840.0,0.26980513]
[1750300004368,0.37814827,104850.0,104840.0,0.26980513]
[1750300005776,0.36861102,104850.0,104840.0,0.27934329]
[1750300006302,0.36861102,104850.0,104840.0,0.26980513]
[1750300006978,0.37814836,104850.0,104840.0,0.27380513]
[1750300007200,0.36861102,104850.0,104840.0,0.27380513]
[1750300007611,0.37814827,104850.0,104840.0,0.27380513]
[1750300008025,0.37814827,104850.0,104840.0,0.27380522]
[1750300008256,0.37814827,104850.0,104840.0,0.0735]
[1750300008479,0.37814827,104850.0,104840.0,0.08303834]
[1750300008963,0.738912,104850.0,104840.0,0.08303834]
[1750300009190,0.738912,104850.0,104840.0,0.0735]
[1750300009584,0.74844934,104850.0,104840.0,0.08303834]
[1750300010012,0.74844934,104850.0,104840.0,0.0735]
[1750300010216,0.74844998,104850.0,104840.0,0.0735]
[1750300010658,0.73891255,104850.0,104840.0,0.0735]
[1750300010899,0.73891255,104850.0,104840.0,0.08303834]
[1750300011097,0.73891255,104850.0,104840.0,0.0735]
[1750300011353,0.72937521,104850.0,104840.0,0.0925765]
[1750300011563,0.71983796,104850.0,104840.0,0.09257659]
[1750300011773,0.71983796,104850.0,104840.0,0.10211475]
[1750300011988,0.71983759,104850.0,104840.0,0.3024197]
[1750300012207,0.34,104850.0,104840.0,0.76896253]
[1750300012425,0.37983549,104860.0,104850.0,0.20982327]
[1750300012607,0.37983549,104860.0,104850.0,0.28236034]
[1750300012608,0.34953579,104860.0,104850.0,0.28236034]
[1750300012850,0.35907186,104860.0,104850.0,0.29189731]
[1750300013087,0.35907186,104860.0,104850.0,0.28236034]
[1750300013301,0.35907186,104860.0,104850.0,0.27282327]
[1750300013520,0.72937184,104860.0,104850.0,0.27282336]
[1750300014225,0.71983549,104860.0,104850.0,0.39767613]
[1750300014453,0.71983549,104860.0,104850.0,0.38813925]
[1750300014832,0.36860792,104860.0,104850.0,0.37860228]
[1750300015522,0.37814426,104860.0,104850.0,0.36906512]
[1750300015941,0.36860792,104860.0,104850.0,0.36906512]
[1750300016143,0.37814417,104860.0,104850.0,0.36906512]
[1750300016548,0.36860792,104860.0,104850.0,0.36906512]
[1750300016749,0.36860792,104860.0,104850.0,0.37860228]
[1750300016930,0.36860792,104860.0,104850.0,0.36906512]
[1750300017136,0.36860792,104860.0,104850.0,0.37860228]
[1750300017345,0.36860792,104860.0,104850.0,0.38260228]
[1750300017758,0.36860792,104860.0,104850.0,0.37306512]
[1750300018183,0.36860792,104860.0,104850.0,0.38260228]
[1750300018438,0.35907176,104860.0,104850.0,0.39213935]
[1750300018678,0.36860792,104860.0,104850.0,0.39213935]
[1750300019187,0.36860792,104860.0,104850.0,0.38260228]
[1750300019431,0.37814417,104860.0,104850.0,0.37306512]
[1750300020390,0.02860792,104860.0,104850.0,0.37306512]
[1750300020629,0.02860792,104860.0,104850.0,0.38260246]
[1750300021486,0.03814426,104860.0,104850.0,0.37306521]
[1750300021728,0.03814426,104860.0,104850.0,0.38260246]
[1750300021971,0.04768078,104860.0,104850.0,0.16324176]
[1750300022208,0.04768078,104860.0,104850.0,0.17277919]
[1750300022429,0.03814426,104860.0,104850.0,0.17277919]
[1750300022694,0.03814426,104860.0,104850.0,0.19385378]
[1750300022898,0.03814426,104860.0,104850.0,0.18431653]
[1750300023103,0.03814426,104860.0,104850.0,0.17477919]
[1750300023345,0.02860792,104860.0,104850.0,0.18431644]
[1750300023587,0.03814417,104860.0,104850.0,0.18431644]
[1750300023784,0.03814417,104860.0,104850.0,0.17477919]
[1750300024003,0.03814417,104860.0,104850.0,0.18431653]
[1750300024226,0.03814417,104860.0,104850.0,0.19385378]
[1750300024451,0.03814417,104860.0,104850.0,0.18431653]
[1750300025269,0.03814417,104860.0,104850.0,0.19385378]
[1750300026486,0.03814417,104860.0,104850.0,0.18431653]
[1750300026712,0.0476806,104860.0,104850.0,0.18431653]
[1750300027316,0.03814417,104860.0,104850.0,0.18431653]
[1750300027555,0.02860792,104860.0,104850.0,0.37506521]
[1750300027794,0.02860792,104860.0,104850.0,0.38460246]
[1750300028271,0.03814426,104860.0,104850.0,0.37506521]
[1750300028751,0.03814426,104860.0,104850.0,0.36552787]
[1750300029576,0.04768078,104860.0,104850.0,0.16524176]
[1750300029817,0.04768069,104860.0,104850.0,0.17477919]
[1750300030507,0.04768069,104860.0,104850.0,0.16524176]
[1750300030711,0.04768069,104860.0,104850.0,0.17477919]
[1750300031627,0.04768069,104860.0,104850.0,0.16524176]
[1750300031845,0.53993239,104860.0,104850.0,0.16524176]
[1750300032709,0.53039623,104860.0,104850.0,0.16524176]
[1750300034086,0.52085989,104860.0,104850.0,0.069]
[1750300036864,0.56099432,104860.0,104850.0,0.069]
[1750300045510,0.55145789,104860.0,104850.0,0.069]
[1750300052707,0.40125008,104860.0,104850.0,0.069]
[1750300055843,0.24052268,104860.0,104850.0,0.069]
[1750300056050,0.18461046,104860.0,104850.0,0.069]
[1750300056264,0.38461046,104860.0,104850.0,0.069]
[1750300057064,0.37534095,104860.0,104850.0,0.069]
[1750300059479,0.40394988,104860.0,104850.0,0.069]
[1750300060384,0.39441381,104860.0,104850.0,0.069]
[1750300069997,0.42308581,104860.0,104850.0,0.069]
[1750300070232,0.39441381,104860.0,104850.0,0.069]
[1750300070949,0.77053075,104860.0,104850.0,0.069]
[1750300071177,0.57053075,104860.0,104850.0,0.069]
[1750300072457,0.68079304,104860.0,104850.0,0.069]
[1750300072686,0.6712567,104860.0,104850.0,0.069]
[1750300073370,1.0112567,104860.0,104850.0,0.069]
[1750300073588,6.56096359,104860.0,104850.0,0.006]
[1750300074046,6.20023619,104860.0,104850.0,0.006]
[1750300074290,6.14037708,104860.0,104850.0,0.006]
[1750300074750,6.14037708,104860.0,104850.0,0.0694]
[1750300075169,6.13366364,104860.0,104850.0,0.0694]
[1750300075398,6.1403692,104860.0,104850.0,0.0694]
[1750300076750,0.37761853,104860.0,104850.0,0.0694]
[1750300077023,0.43719983,104860.0,104850.0,0.07893743]
[1750300077245,0.0382077,104860.0,104850.0,0.65902471]
[1750300077458,0.028672,104860.0,104850.0,0.75526647]
[1750300077679,0.93378839,104870.0,104860.0,0.063]
[1750300077897,0.94273098,104870.0,104860.0,0.063]
[1750300078133,0.97139898,104870.0,104860.0,0.063]
[1750300078571,0.97139835,104870.0,104860.0,0.063]
[1750300078808,0.42694274,104870.0,104860.0,0.063]
[1750300079069,0.07575077,104870.0,104860.0,0.063]
[1750300079301,0.08528638,104870.0,104860.0,0.063]
[1750300079601,0.08528629,104870.0,104860.0,0.063]
[1750300079824,0.07634433,104870.0,104860.0,0.063]
[1750300080038,0.07634506,104870.0,104860.0,0.063]
[1750300080753,0.0668099,104870.0,104860.0,0.063]
[1750300080981,0.25752221,104870.0,104860.0,0.063]
[1750300081226,0.56853001,104870.0,104860.0,0.063]
[1750300082429,0.55899458,104870.0,104860.0,0.063]
[1750300086142,0.56793415,104870.0,104860.0,0.063]
[1750300088206,0.028668,104870.0,104860.0,0.77816203]
[1750300088511,0.028668,104870.0,104860.0,0.77577791]
[1750300088704,0.028668,104870.0,104860.0,0.61019477]
[1750300089534,0.01906803,104880.0,104870.0,0.26064774]
[1750300089755,0.00953388,104880.0,104870.0,0.37102484]
[1750300090209,0.01906804,104880.0,104870.0,0.36148959]
[1750300090428,0.00953388,104880.0,104870.0,0.37102493]
[1750300090655,0.00953388,104880.0,104870.0,0.38056018]
[1750300090865,0.00953388,104880.0,104870.0,0.37102493]
[1750300091544,0.00953388,104880.0,104870.0,0.38056018]
[1750300091791,0.01906794,104880.0,104870.0,0.36148959]
[1750300092022,0.0286021,104880.0,104870.0,0.3710252]
[1750300092238,0.01906794,104880.0,104870.0,0.3710252]
[1750300092500,0.01906794,104880.0,104870.0,0.38056063]
[1750300092921,0.03813671,104880.0,104870.0,0.065]
[1750300093129,0.02860219,104880.0,104870.0,0.25571231]
[1750300093335,0.03813653,104880.0,104870.0,0.25571231]
[1750300093544,0.04767105,104880.0,104870.0,0.25571231]
[1750300093966,0.03813653,104880.0,104870.0,0.25571231]
[1750300094820,0.01906794,104880.0,104870.0,0.26524792]
[1750300095155,0.68914379,104890.0,104880.0,0.0655]
[1750300096980,0.87981973,104890.0,104880.0,0.0655]
[1750300099245,0.87028639,104890.0,104880.0,0.0655]
[1750300100050,0.88941778,104890.0,104880.0,0.0655]
[1750300101236,0.54941778,104890.0,104880.0,0.0655]
[1750300102670,0.228665,104890.0,104880.0,0.0655]
[1750300102952,0.03965141,104900.0,104890.0,0.0614]
[1750300103203,0.09798208,104900.0,104890.0,0.27114343]
[1750300103420,0.0780099,104900.0,104890.0,0.08046749]
[1750300103644,0.10107861,104900.0,104890.0,0.08046749]
[1750300103908,0.11061131,104900.0,104890.0,0.07093379]
[1750300104152,0.30126907,104900.0,104890.0,0.0614]
[1750300104407,0.62181221,104900.0,104890.0,0.0614]
[1750300104870,0.61227996,104900.0,104890.0,0.0614]
[1750300105095,0.60274753,104900.0,104890.0,0.0614]
[1750300106339,0.94274753,104900.0,104890.0,0.0614]
[1750300106760,0.95167073,104900.0,104890.0,0.0614]
[1750300108541,0.94213821,104900.0,104890.0,0.0614]
[1750300111454,0.94213849,104900.0,104890.0,0.0614]
[1750300113116,1.03828771,104900.0,104890.0,0.0614]
[1750300113714,0.94213849,104900.0,104890.0,0.0614]
[1750300114333,0.94214205,104900.0,104890.0,0.0614]
[1750300117257,0.94214714,104900.0,104890.0,0.0614]
[1750300119925,0.94215348,104900.0,104890.0,0.0614]
[1750300122960,0.94215348,104900.0,104860.0,0.29599319]
[1750300122961,0.03813699,104880.0,104860.0,0.29599319]
[1750300123171,0.34914815,104870.0,104860.0,0.37316273]
[1750300123385,0.34914815,104870.0,104860.0,0.14669048]
[1750300123842,0.34914815,104870.0,104860.0,0.14669057]
[1750300124054,0.34914815,104870.0,104860.0,0.156227]
[1750300124266,0.35868349,104870.0,104860.0,0.16576334]
[1750300124470,0.02860501,104870.0,104860.0,0.35649383]
[1750300124675,0.34914815,104870.0,104860.0,0.35649383]
[1750300124910,0.34914815,104870.0,104860.0,0.36603008]
[1750300125370,0.34914815,104870.0,104860.0,0.35649383]
[1750300125593,0.02860501,104870.0,104860.0,0.36603008]
[1750300126134,0.02860501,104870.0,104860.0,0.35649383]
[1750300126342,0.00953479,104870.0,104860.0,0.37556578]
[1750300126552,0.01906967,104870.0,104860.0,0.37556587]
[1750300126767,0.02860483,104870.0,104860.0,0.36602999]
[1750300126967,0.02860473,104870.0,104860.0,0.37556606]
[1750300128751,0.01906967,104870.0,104860.0,0.37556606]
[1750300128923,0.01906967,104870.0,104860.0,0.37556551]
[1750300129505,0.02860464,104870.0,104860.0,0.36602954]
[1750300129739,0.0381398,104870.0,104860.0,0.27983942]
[1750300129955,0.0381398,104870.0,104860.0,0.27983951]
[1750300130158,0.0381398,104870.0,104860.0,0.28937567]
[1750300130357,0.0381397,104870.0,104860.0,0.27983951]
[1750300130618,0.0381397,104870.0,104860.0,0.28937567]
[1750300131646,0.0381397,104870.0,104860.0,0.29891174]
[1750300131855,0.0381397,104870.0,104860.0,0.28937567]
[1750300132486,0.0381397,104870.0,104860.0,0.29891174]
[1750300132773,0.0381397,104870.0,104860.0,0.28937567]
[1750300133053,0.0381397,104870.0,104860.0,0.27983951]
[1750300133261,0.0381397,104870.0,104860.0,0.27030326]
[1750300133475,0.03814016,104870.0,104860.0,0.27030317]
[1750300134022,0.03814007,104870.0,104860.0,0.27030317]
[1750300134351,0.03814007,104870.0,104860.0,0.27983933]
[1750300134766,0.03814007,104870.0,104860.0,0.27030317]
[1750300134991,0.03814007,104870.0,104860.0,0.27983933]
[1750300135411,0.02860491,104870.0,104860.0,0.27983933]
[1750300135615,0.02860491,104870.0,104860.0,0.27030317]
[1750300136040,0.03814016,104870.0,104860.0,0.27030317]
[1750300136249,0.03814016,104870.0,104860.0,0.42518326]
[1750300136462,0.03814016,104870.0,104860.0,0.43471951]
[1750300136923,0.03814016,104870.0,104860.0,0.41564692]
[1750300137151,0.03814016,104870.0,104860.0,0.42518326]
[1750300137625,0.03814016,104870.0,104860.0,0.43471951]
[1750300138377,0.02860491,104870.0,104860.0,0.43471951]
[1750300138621,0.03814007,104870.0,104860.0,0.43471951]
[1750300139079,0.03814007,104870.0,104860.0,0.43871951]
[1750300139276,0.03814007,104870.0,104860.0,0.42918326]
[1750300139507,0.23838845,104870.0,104860.0,0.0645]
[1750300139724,0.21931842,104870.0,104860.0,0.0645]
[1750300139958,0.02860602,104870.0,104860.0,0.0645]
[1750300140703,0.01907004,104870.0,104860.0,0.27430326]
[1750300140920,0.01907004,104870.0,104860.0,0.26476701]
[1750300141150,0.02860538,104870.0,104860.0,0.27430344]
[1750300141595,0.02860538,104870.0,104860.0,0.26476701]
[1750300141831,0.0381409,104870.0,104860.0,0.07403652]
[1750300142075,0.02860538,104870.0,104860.0,0.08357295]
[1750300142527,0.02860538,104870.0,104860.0,0.08557295]
[1750300142746,0.0381409,104870.0,104860.0,0.23091652]
[1750300142959,0.02860538,104870.0,104860.0,0.07603652]